bitfinex-derivatives/quotes_BNBF0:USTF0_20250510
["timestamp","ask_amount","ask_price","bid_price","bid_amount"]
[1746920926495,0.24769238,664.53,663.26,0.413]
[1746920926893,0.24769238,664.52,663.26,0.413]
[1746920927293,0.24769238,664.51,663.26,0.413]
[1746920927694,0.24769238,664.5,663.26,0.413]
[1746920928088,0.50990248,664.49,663.26,0.413]
[1746920928398,0.24769238,664.48,663.26,0.413]
[1746920928695,0.24769238,664.47,663.26,0.413]
[1746920929098,0.24769238,664.46,663.26,0.413]
[1746920929496,0.24769238,664.45,663.26,0.413]
[1746920929894,0.24769238,664.44,663.26,0.413]
[1746920930294,0.24769238,664.43,663.26,0.413]
[1746920930791,0.24769238,664.42,663.26,0.413]
[1746920930992,0.24769238,664.41,663.26,0.413]
[1746920931390,0.24769238,664.4,663.26,0.413]
[1746920931595,0.24769238,664.4,663.27,0.523]
[1746920931895,0.24769238,664.43,663.27,0.523]
[1746920932092,0.24769238,664.39,663.27,0.523]
[1746920932393,0.24769238,664.43,663.27,0.523]
[1746920934191,0.26221109,664.43,663.27,0.523]
[1746920934497,0.26221109,664.43,663.28,0.44]
[1746920934698,0.24769238,664.42,663.28,0.44]
[1746920937400,0.24769238,664.42,663.29,0.381]
[1746920938595,0.24769238,664.42,663.3,0.891]
[1746920940102,0.26221306,664.41,663.3,0.891]
[1746920940501,0.24769238,664.4,663.3,0.891]
[1746920946107,0.26221504,664.39,663.3,0.891]
[1746920946603,0.24769238,664.38,663.3,0.891]
[1746920949411,0.24769238,664.39,663.3,0.891]
[1746920951210,0.24769238,664.38,663.3,0.891]
[1746920951617,0.24769238,664.37,663.3,0.891]
[1746920951813,0.24769238,664.36,663.3,0.891]
[1746920952109,0.24769238,664.35,663.3,0.891]
[1746920952507,0.24769238,664.34,663.3,0.547]
[1746920952811,0.24769238,664.39,663.3,0.547]
[1746920953317,0.24769238,664.38,663.3,0.547]
[1746920953715,0.24769238,664.39,663.3,0.547]
[1746920954616,0.24769238,664.39,663.28,0.44]
[1746920955314,0.26222492,664.4,663.28,0.44]
[1746920955716,0.24769238,664.39,663.28,0.44]
[1746920955917,0.24769238,664.39,663.29,0.748]
[1746920957120,0.24769238,664.39,663.3,0.634]
[1746920958120,0.24769238,664.39,663.31,0.542]
[1746920958318,0.26221306,664.4,663.31,0.542]
[1746920958718,0.24769238,664.39,663.31,0.542]
[1746920960619,0.24769238,664.39,663.31,1.019]
[1746920961517,0.24769238,664.38,663.31,1.019]
[1746920962018,0.24769238,664.37,663.31,1.019]
[1746920962319,0.24769238,664.36,663.31,1.019]
[1746920962719,0.26221306,664.4,663.31,1.019]
[1746920962720,0.24769238,664.35,663.31,1.019]
[1746920963118,0.24769238,664.34,663.31,1.019]
[1746920963420,0.24769238,664.33,663.31,1.019]
[1746920963720,0.24769238,664.32,663.31,1.019]
[1746920964014,0.24769238,664.31,663.31,1.019]
[1746920964419,0.24769238,664.3,663.31,1.019]
[1746920964622,0.24769238,664.29,663.31,1.019]
[1746920965020,0.24769238,664.4,663.31,1.019]
[1746920967422,0.26222492,664.41,663.31,1.019]
[1746920967922,0.24769238,664.4,663.31,1.019]
[1746920968820,0.26222492,664.41,663.31,1.019]
[1746920969224,0.24769254,664.4,663.31,1.019]
[1746920970018,0.24769254,664.57,663.31,1.019]
[1746920970325,0.2622022,664.45,663.31,1.019]
[1746920970622,0.24769254,664.57,663.31,1.46]
[1746920970823,0.24769254,664.56,663.31,1.46]
[1746920971018,0.24769254,664.55,663.31,1.46]
[1746920971423,0.24769254,664.54,663.31,1.46]
[1746920971624,0.24769254,664.53,663.31,1.46]
[1746920972225,0.24769254,664.52,663.31,1.46]
[1746920972525,0.26219825,664.56,663.31,1.46]
[1746920972824,0.30094194,664.58,663.31,1.46]
[1746920973024,0.24768968,664.55,663.31,1.46]
[1746920973230,0.24768968,664.54,663.31,1.46]
[1746920973629,0.24768968,664.53,663.31,1.46]
[1746920973922,0.24768968,664.52,663.31,1.46]
[1746920974123,0.24768968,664.51,663.31,1.46]
[1746920974527,0.24768968,664.5,663.31,1.46]
[1746920974826,0.24768968,664.49,663.31,1.46]
[1746920975127,0.24768968,664.48,663.31,1.46]
[1746920975628,0.24768968,664.47,663.31,1.46]
[1746920976130,0.24768968,664.46,663.31,1.46]
[1746920976929,0.24768968,664.46,663.31,1.849]
[1746920979131,0.26221603,664.45,663.31,1.849]
[1746920979832,0.24768968,664.44,663.31,1.849]
[1746920982131,0.26221405,664.43,663.31,1.849]
[1746920982534,0.24768968,664.42,663.31,1.849]
[1746920983434,0.24768968,664.42,663.31,2.349]
[1746920983933,0.26221405,664.43,663.31,2.349]
[1746920984233,0.26221405,664.43,663.31,2.837]
[1746920984534,0.24770589,664.42,663.31,2.837]
[1746920985236,0.26221405,664.41,663.31,2.837]
[1746920985535,0.24770589,664.4,663.31,2.837]
[1746920988135,0.26221405,664.39,663.31,2.837]
[1746920988730,0.24770589,664.38,663.31,2.837]
[1746920989031,0.24770589,664.37,663.31,2.837]
[1746920989333,0.24770589,664.38,663.31,2.837]
[1746920991141,0.26223381,664.37,663.31,2.837]
[1746920991738,0.24770589,664.36,663.31,2.837]
[1746920994141,0.26223381,664.35,663.31,2.837]
[1746920994536,0.24773257,664.34,663.31,2.837]
[1746920996738,0.26223381,664.35,663.31,2.837]
[1746920996938,0.30094194,664.58,663.31,2.837]
[1746920997143,0.50996683,664.34,663.31,2.837]
[1746920997437,0.24773302,664.34,663.31,2.837]
[1746920997642,0.24773302,664.33,663.31,2.837]
[1746920998245,0.26223381,664.32,663.31,2.837]
[1746920998745,0.24773302,664.31,663.31,2.837]
[1746921003348,0.24773302,664.57,663.31,2.837]
[1746921003752,0.24773302,664.56,663.31,2.837]
[1746921004146,0.54868855,664.55,663.31,2.837]
[1746921004454,0.24773302,664.54,663.31,2.837]
[1746921005052,0.24773302,664.53,663.31,2.837]
[1746921005551,0.24773302,664.52,663.31,2.837]
[1746921005953,0.24773302,664.51,663.31,2.837]
[1746921006355,0.24773302,664.54,663.31,2.837]
[1746921010154,0.26222097,664.53,663.31,2.837]
[1746921010349,0.50995399,664.53,663.31,2.837]
[1746921011355,0.24773302,664.52,663.31,2.837]
[1746921012457,0.54870666,664.51,663.31,2.837]
[1746921012860,0.24773302,664.5,663.31,2.837]
[1746921013265,0.50997177,664.5,663.31,2.837]
[1746921013458,0.24773302,664.49,663.31,2.837]
[1746921013760,0.24773302,664.48,663.31,2.837]
[1746921014261,0.30099176,664.47,663.31,2.837]
[1746921014760,0.24773302,664.46,663.31,2.837]
[1746921015160,0.50996584,664.46,663.31,2.837]
[1746921015357,0.24773302,664.45,663.31,2.837]
[1746921016464,0.26223282,664.46,663.31,2.837]
[1746921016864,0.24771433,664.45,663.31,2.837]
[1746921020964,0.30099176,664.47,663.31,2.837]
[1746921020965,0.24771433,664.44,663.31,2.837]
[1746921021166,0.5099432,664.44,663.31,2.837]
[1746921021366,0.24771433,664.43,663.31,2.837]
[1746921021568,0.24771433,664.42,663.31,2.837]
[1746921021872,0.24771433,664.43,663.31,2.837]
[1746921022167,0.24771433,664.46,663.31,2.837]
[1746921024168,0.50992542,664.46,663.31,2.837]
[1746921024468,0.24771433,664.45,663.31,2.837]
[1746921025671,0.26221109,664.46,663.31,2.837]
[1746921026071,0.24769242,664.45,663.31,2.837]
[1746921026469,0.26221109,664.46,663.31,2.837]
[1746921026768,0.24769195,664.45,663.31,2.837]
[1746921027168,0.26221899,664.44,663.31,2.837]
[1746921027763,0.24769195,664.43,663.31,2.837]
[1746921029577,0.24769195,664.42,663.31,2.837]
[1746921029873,0.24769195,664.41,663.31,2.837]
[1746921030177,0.24769195,664.4,663.31,2.837]
[1746921030579,0.24769195,664.39,663.31,2.837]
[1746921030871,0.24769195,664.4,663.31,2.837]
[1746921033380,0.50990304,664.46,663.31,2.837]
[1746921033682,0.24769195,664.45,663.31,2.837]
[1746921036385,0.24769195,664.46,663.31,2.837]
[1746921037582,0.24769195,664.45,663.31,2.837]
[1746921037885,0.24769195,664.44,663.31,2.837]
[1746921038285,0.24769195,664.46,663.31,2.837]
[1746921038679,0.24769195,664.45,663.31,2.837]
[1746921039080,0.24769195,664.44,663.31,2.837]
[1746921039479,0.24769195,664.46,663.31,2.837]
[1746921039786,0.24769195,664.45,663.31,2.837]
[1746921040192,0.24769195,664.46,663.31,2.837]
[1746921040490,0.24769195,664.45,663.31,2.837]
[1746921040787,0.24769195,664.46,663.31,2.837]
[1746921041588,0.24769195,664.45,663.31,2.837]
[1746921041887,0.24769195,664.44,663.31,2.837]
[1746921042386,0.30099176,664.47,663.31,2.837]
[1746921042387,0.24769195,664.43,663.31,2.837]
[1746921042687,0.24769195,664.42,663.31,2.837]
[1746921043187,0.24769195,664.46,663.31,2.837]
[1746921043885,0.24769195,664.45,663.31,2.837]
[1746921044387,0.24769195,664.44,663.31,2.837]
[1746921045196,0.26222097,664.43,663.31,2.837]
[1746921045891,0.24769195,664.42,663.31,2.837]
[1746921046289,0.24769195,664.41,663.31,2.837]
[1746921046489,0.24769195,664.4,663.31,2.837]
[1746921046895,0.24769195,664.39,663.31,2.837]
[1746921047191,0.26222097,664.43,663.31,2.837]
[1746921047493,0.24769135,664.42,663.31,2.837]
[1746921048591,0.26222097,664.41,663.31,2.837]
[1746921048792,0.24769135,664.4,663.31,2.837]
[1746921054193,0.24769135,664.4,663.31,3.13851814]
[1746921054601,0.30099176,664.47,663.31,3.13851814]
[1746921054602,0.24769135,664.39,663.31,3.13851814]
[1746921054898,0.24769135,664.38,663.31,3.13851814]
[1746921055199,0.24769135,664.46,663.31,3.13851814]
[1746921055698,0.24769135,664.45,663.31,3.13851814]
[1746921056001,0.24769135,664.44,663.31,3.13851814]
[1746921056305,0.24769135,664.43,663.31,3.13851814]
[1746921056899,0.24769135,664.42,663.31,3.13851814]
[1746921057395,0.24769135,664.41,663.31,3.13851814]
[1746921057802,0.24769135,664.46,663.31,3.13851814]
[1746921058099,0.24769135,664.45,663.31,3.13851814]
[1746921058502,0.24769135,664.44,663.31,3.13851814]
[1746921058702,0.24769135,664.43,663.31,3.13851814]
[1746921059101,0.24769135,664.42,663.31,3.13851814]
[1746921059298,0.24769135,664.41,663.31,3.13851814]
[1746921059812,0.24769135,664.4,663.31,3.13851814]
[1746921060000,0.24769135,664.39,663.31,3.13851814]
[1746921060404,0.24769135,664.38,663.31,3.13851814]
[1746921060800,0.24769135,664.37,663.31,3.13851814]
[1746921061005,0.24769135,664.36,663.31,3.13851814]
[1746921061306,0.24769135,664.35,663.31,3.13851814]
[1746921061802,0.24769135,664.34,663.31,3.13851814]
[1746921062208,0.24769135,664.46,663.31,3.13851814]
[1746921062810,2.20029371,664.46,663.31,3.13851814]
[1746921063108,0.24769135,664.45,663.31,3.13851814]
[1746921063806,0.24769135,664.45,663.32,0.30151359]
[1746921064607,1.95260236,664.46,663.32,0.30151359]
[1746921064810,0.26218837,664.58,663.32,0.30151359]
[1746921065010,0.24768791,664.45,663.32,0.30151359]
[1746921065311,0.24768791,664.57,663.32,0.30151359]
[1746921065709,0.24768791,664.57,663.33,0.54]
[1746921066113,0.26212517,664.56,663.33,0.54]
[1746921066609,0.24768791,664.55,663.33,0.54]
[1746921066804,0.24768791,664.55,663.34,0.425]
[1746921067007,0.24768791,664.55,663.34,1.002]
[1746921067511,0.24768791,664.55,663.35,0.441]
[1746921067812,0.24768791,664.55,663.36,0.539]
[1746921068110,0.24768791,664.55,663.36,1.014]
[1746921069113,0.26216565,664.54,663.36,1.014]
[1746921069614,0.24768791,664.53,663.36,1.014]
[1746921072306,0.26217059,664.52,663.36,1.014]
[1746921073116,0.24768791,664.51,663.36,1.014]
[1746921075318,0.26217948,664.5,663.36,1.014]
[1746921075713,0.24768791,664.49,663.36,1.014]
[1746921078115,0.26218837,664.48,663.36,1.014]
[1746921078319,0.24768791,664.47,663.36,1.014]
[1746921078718,0.54867967,664.47,663.36,1.014]
[1746921079018,0.24768791,664.46,663.36,1.014]
[1746921079619,0.30100082,664.45,663.36,1.014]
[1746921079919,0.30100082,664.45,663.37,0.524]
[1746921080119,0.24768791,664.44,663.37,0.524]
[1746921081219,0.26226741,664.43,663.37,0.524]
[1746921081817,0.24768791,664.42,663.37,0.524]
[1746921082421,0.30101894,664.41,663.37,0.524]
[1746921082920,0.24768791,664.4,663.37,0.524]
[1746921084122,0.24768791,664.4,663.38,0.668]
[1746921084322,0.26227729,664.39,663.38,0.668]
[1746921085223,0.24779609,664.38,663.38,0.668]
[1746921086123,0.30103707,664.37,663.38,0.668]
[1746921086519,0.24779609,664.36,663.38,0.668]
[1746921087119,0.26227927,664.35,663.38,0.668]
[1746921087725,0.24779609,664.34,663.38,0.668]
[1746921087926,0.26227927,664.35,663.38,0.668]
[1746921088227,0.24779752,664.34,663.38,0.668]
[1746921089228,0.30105519,664.33,663.38,0.668]
[1746921090124,0.24779752,664.32,663.38,0.668]
[1746921090326,0.30106426,664.31,663.38,0.668]
[1746921090730,0.24779413,664.3,663.38,0.668]
[1746921091431,0.24779413,664.3,663.39,0.489]
[1746921092126,0.24779413,664.29,663.39,0.489]
[1746921092330,0.24779413,664.28,663.39,0.489]
[1746921092628,0.24779413,664.27,663.39,0.489]
[1746921093129,0.24779413,664.26,663.39,0.489]
[1746921093428,0.24779413,664.25,663.39,0.489]
[1746921093625,0.24779413,664.24,663.39,0.489]
[1746921094026,0.24779413,664.23,663.39,0.489]
[1746921094527,0.24779413,664.22,663.39,0.489]
[1746921094726,0.24779413,664.22,663.4,0.374]
[1746921095132,0.24779413,664.21,663.4,0.374]
[1746921095530,0.24779413,664.2,663.4,0.374]
[1746921095730,0.24779413,664.19,663.4,0.374]
[1746921096030,0.24779413,664.18,663.4,0.374]
[1746921096230,0.24779413,664.17,663.41,0.486]
[1746921096529,0.24779413,664.16,663.41,0.486]
[1746921096732,0.24779413,664.15,663.41,0.486]
[1746921097031,0.24779413,664.25,663.41,0.486]
[1746921097231,0.24779413,664.24,663.41,0.486]
[1746921097531,0.24779413,664.23,663.41,0.486]
[1746921097731,0.26229508,664.26,663.41,0.486]
[1746921097732,0.24779413,664.22,663.41,0.486]
[1746921098036,0.24779413,664.21,663.41,0.486]
[1746921098234,0.24779413,664.25,663.41,0.486]
[1746921098634,0.26222393,664.43,663.41,0.486]
[1746921098827,0.24779413,664.42,663.41,0.486]
[1746921099236,0.24779413,664.56,663.41,0.486]
[1746921100234,0.26219825,664.55,663.41,0.486]
[1746921100743,0.24779413,664.54,663.41,0.486]
[1746921102131,0.24779413,664.54,663.42,0.522]
[1746921102335,0.26210148,664.53,663.43,0.709]
[1746921102735,0.24779413,664.52,663.43,0.709]
[1746921105236,0.26209556,664.51,663.43,0.709]
[1746921105731,0.24779413,664.5,663.43,0.709]
[1746921108139,0.24779413,665.55,663.43,0.709]
[1746921108338,0.26209753,664.49,663.43,0.709]
[1746921108544,0.3005485,665.45,663.43,0.709]
[1746921108839,0.24779413,665.44,663.43,0.709]
[1746921109139,1.95260236,665.56,663.43,0.709]
[1746921109140,0.30059819,665.34,663.43,0.709]
[1746921109641,0.24779413,665.33,663.43,0.709]
[1746921109939,0.30061174,665.31,663.43,0.709]
[1746921110441,0.24779413,665.3,663.43,0.709]
[1746921110641,0.3006253,665.28,663.43,0.709]
[1746921111239,0.24779413,665.27,663.43,0.709]
[1746921111442,0.30063885,665.25,663.43,0.709]
[1746921112040,0.24779413,665.24,663.43,0.709]
[1746921112341,0.50996867,665.24,663.43,0.709]
[1746921112542,0.24779413,665.23,663.43,0.709]
[1746921112733,0.24779413,665.22,663.43,0.709]
[1746921113140,0.24779413,665.21,663.43,0.709]
[1746921113642,0.24779413,665.2,663.43,0.709]
[1746921113940,1.95260236,664.62,663.43,0.709]
[1746921114741,0.54872249,664.61,663.43,0.709]
[1746921115141,0.24779413,664.6,663.43,0.709]
[1746921115343,0.24779413,664.6,663.43,1.139]
[1746921115542,0.24779413,664.59,663.43,1.139]
[1746921115743,0.30092836,664.61,663.43,1.139]
[1746921115744,0.24779413,664.58,663.43,1.139]
[1746921116045,0.30092836,664.61,663.43,1.762]
[1746921116342,0.24772099,664.6,663.43,1.762]
[1746921116643,0.24772099,664.59,663.43,1.762]
[1746921117043,0.24772099,664.58,663.43,1.762]
[1746921117444,0.24772099,664.57,663.43,1.762]
[1746921117945,0.24772099,664.56,663.43,1.762]
[1746921118145,0.24772099,664.55,663.43,1.762]
[1746921118446,0.30092836,664.61,663.43,1.762]
[1746921118745,0.2477188,664.6,663.43,1.762]
[1746921119046,0.2477188,664.59,663.43,1.762]
[1746921119345,0.2477188,664.59,663.43,2.207]
[1746921119545,0.54866074,664.58,663.43,2.207]
[1746921119746,0.30094194,664.58,663.43,2.207]
[1746921120042,0.24771968,664.57,663.43,2.207]
[1746921120448,0.24771968,664.56,663.43,2.207]
[1746921120746,0.24771968,664.55,663.43,2.207]
[1746921121147,0.24771968,664.54,663.43,2.207]
[1746921121548,0.24771968,664.53,663.43,2.207]
[1746921121851,0.24771968,664.52,663.44,0.30145906]
[1746921122149,0.24771968,664.52,663.45,0.475]
[1746921122450,0.24771968,664.57,663.45,0.475]
[1746921123049,0.30094194,664.58,663.45,0.475]
[1746921123254,0.24762533,664.57,663.46,0.46]
[1746921126255,0.26218639,664.56,663.46,0.46]
[1746921126750,0.24762533,664.55,663.46,0.46]
[1746921129654,0.24762533,664.57,663.47,0.629]
[1746921130254,0.26220812,664.56,663.47,0.629]
[1746921130455,0.24762533,664.55,663.47,0.629]
[1746921133257,0.24762533,664.54,663.47,0.629]
[1746921133657,0.24762533,664.53,663.47,0.629]
[1746921133957,0.24762533,664.52,663.47,0.629]
[1746921134153,0.24762533,664.51,663.47,0.629]
[1746921134458,0.24762533,664.5,663.47,0.629]
[1746921134858,0.24762533,664.49,663.47,0.629]
[1746921135159,0.24762533,664.48,663.47,0.629]
[1746921135457,0.24762533,664.47,663.47,0.629]
[1746921135760,0.24762533,664.46,663.47,0.629]
[1746921136254,0.24762533,664.45,663.47,0.629]
[1746921136758,0.24762533,664.44,663.47,0.629]
[1746921137159,0.24762533,664.43,663.47,0.629]
[1746921137560,0.24762533,664.55,663.47,0.629]
[1746921138261,0.26218738,664.54,663.47,0.629]
[1746921138560,0.24762533,664.53,663.47,0.629]
[1746921141261,0.26217059,664.52,663.47,0.629]
[1746921141859,0.24762533,664.51,663.47,0.629]
[1746921142560,0.24762533,664.5,663.47,0.629]
[1746921142959,0.24762533,664.49,663.47,0.629]
[1746921143361,0.24762533,664.48,663.47,0.629]
[1746921143764,0.24762533,664.47,663.47,0.629]
[1746921144062,0.24762533,664.46,663.47,0.629]
[1746921144262,0.24762533,664.51,663.47,0.629]
[1746921144663,0.24762533,664.51,663.47,0.30144543]
[1746921146264,0.24762533,664.51,663.48,0.552]
[1746921147364,0.24762533,664.51,663.49,0.507]
[1746921147964,0.24762533,664.57,663.49,0.507]
[1746921149667,0.24762533,664.57,663.5,0.443]
[1746921151066,0.56309476,664.58,663.5,0.443]
[1746921151667,0.24763555,664.57,663.5,0.443]
[1746921151966,0.24763555,664.57,663.51,0.57]
[1746921156276,0.24763555,664.57,663.51,0.87142725]
[1746921156571,0.24763555,664.57,663.52,0.30142271]
[1746921161674,0.24763555,664.56,663.52,0.30142271]
[1746921161969,0.24763555,664.57,663.52,0.30142271]
[1746921162273,0.30094194,664.58,663.52,0.30142271]
[1746921162473,0.26215282,664.57,663.53,0.644]
[1746921162673,0.50978412,664.57,663.54,0.30141362]
[1746921163176,0.2476313,664.56,663.54,0.30141362]
[1746921163973,0.2476313,664.57,663.54,0.30141362]
[1746921169678,0.2476313,664.57,663.55,0.468]
[1746921169878,0.2476313,664.57,663.56,0.30140454]
[1746921173485,0.2476313,664.57,663.56,1.17240454]
[1746921176088,0.2476313,664.57,663.56,1.77240454]
[1746921179989,0.2476313,664.57,663.56,2.40040454]
[1746921183693,0.2476313,664.57,663.56,2.95040454]
[1746921183893,0.2476313,664.57,663.57,1.16203294]
[1746921184493,0.2476313,664.57,663.58,1.16203294]
[1746921184793,0.2476313,664.57,663.6,0.30138637]
[1746921187696,0.2476313,664.57,663.61,1.16171877]
[1746921187890,0.2476313,664.57,663.63,0.30137275]
[1746921192195,0.2476313,664.57,663.64,0.441]
[1746921192799,0.2476313,664.57,663.66,0.30135912]
[1746921193799,0.30094194,664.58,663.66,0.30135912]
[1746921199998,0.30094194,664.58,663.67,0.497]
[1746921200205,0.2474567,664.57,663.67,0.497]
[1746921200699,0.30094194,664.58,663.67,0.497]
[1746921201302,0.24745767,664.57,663.67,0.497]
[1746921201696,0.24745767,664.57,663.68,0.556]
[1746921202103,0.24745767,664.57,663.68,1.239]
[1746921203203,0.30094194,664.58,663.68,1.239]
[1746921204703,0.30094194,664.58,663.68,1.827]
[1746921205906,0.30094194,664.58,663.69,1.15964755]
[1746921206702,0.30094194,664.58,663.7,1.15964755]
[1746921207308,0.30094194,664.58,663.71,1.15964755]
[1746921207606,0.30094194,664.58,663.72,1.15964755]
[1746921207808,0.30094194,664.58,663.68,1.827]
[1746921208208,0.30094194,664.58,663.69,1.15907658]
[1746921208607,0.30094194,664.58,663.7,1.15907658]
[1746921209108,0.30094194,664.58,663.71,1.15907658]
[1746921209509,0.30094194,664.58,663.72,1.15907658]
[1746921210710,0.30094194,664.58,663.68,1.827]
[1746921210711,0.30094194,664.58,663.73,1.15907658]
[1746921211407,0.30094194,664.58,663.74,1.15907658]
[1746921212013,0.30094194,664.58,663.75,1.15907658]
[1746921212311,0.30094194,664.58,663.76,1.15907658]
[1746921212811,0.30094194,664.58,663.77,1.15907658]
[1746921213211,0.30094194,664.58,663.78,1.15907658]
[1746921213713,0.30094194,664.58,663.79,1.15907658]
[1746921214614,0.30094194,664.58,663.8,1.15907658]
[1746921215106,0.30094194,664.58,663.81,1.15907658]
[1746921215807,0.30094194,664.58,663.82,1.15907658]
[1746921216408,0.30094194,664.58,663.83,1.15907658]
[1746921217115,0.30094194,664.58,663.84,1.15907658]
[1746921217814,0.30094194,664.58,663.85,1.15907658]
[1746921218215,0.30094194,664.58,663.86,1.15907658]
[1746921218719,0.30094194,664.58,663.87,1.15907658]
[1746921219317,0.30094194,664.58,663.88,1.66007658]
[1746921219718,0.30094194,664.58,663.89,1.15907658]
[1746921220620,0.30094194,664.58,663.88,0.501]
[1746921221817,0.30094194,664.58,663.89,0.436]
[1746921225617,0.30094194,664.58,663.9,0.625]
[1746921230217,0.30094194,664.58,663.91,0.418]
[1746921231920,0.30094194,664.58,663.92,0.458]
[1746921233424,0.30094194,664.58,663.93,0.497]
[1746921233621,0.2474041,664.57,663.93,0.497]
[1746921238824,0.2474041,665.24,663.93,0.497]
[1746921239124,0.2474041,665.23,663.93,0.497]
[1746921239526,0.2474041,665.22,663.93,0.497]
[1746921240023,0.2474041,665.21,663.93,0.497]
[1746921240421,0.2474041,665.2,663.93,0.497]
[1746921240635,0.2474041,665.19,663.93,0.497]
[1746921240927,0.2474041,665.18,663.93,0.497]
[1746921241322,0.2474041,665.24,663.93,0.497]
[1746921242331,0.2474041,665.24,663.93,2.061]
[1746921243327,0.26191704,665.23,663.93,2.061]
[1746921243526,0.2474041,665.22,663.93,2.061]
[1746921246326,0.26186284,665.21,663.93,2.061]
[1746921246930,0.2474041,665.2,663.93,2.061]
[1746921249536,0.2474041,665.19,663.93,2.061]
[1746921249930,0.26186284,665.21,663.93,2.061]
[1746921249931,0.2474041,665.18,663.93,2.061]
[1746921250335,0.2474041,665.17,663.93,2.061]
[1746921250737,0.2474041,665.16,663.93,2.061]
[1746921251039,0.2474041,665.15,663.93,2.061]
[1746921251438,0.2474041,665.14,663.93,2.061]
[1746921251844,0.2474041,665.13,663.93,2.061]
[1746921252335,0.50928566,665.12,663.93,2.061]
[1746921252635,0.2474041,665.11,663.93,2.061]
[1746921252940,0.2474041,665.1,663.93,2.061]
[1746921253335,0.2474041,665.09,663.93,2.061]
[1746921253738,0.2474041,665.08,663.93,2.061]
[1746921253950,0.2474041,665.07,663.93,2.061]
[1746921254340,0.2474041,665.06,663.93,2.061]
[1746921254940,0.2474041,665.11,663.93,2.061]
[1746921255545,1.95260236,665.24,663.93,2.061]
[1746921255843,0.2474041,665.23,663.93,2.061]
[1746921256338,0.26194957,665.22,663.95,0.3012275]
[1746921256542,0.2474041,665.21,663.95,0.3012275]
[1746921258243,0.26182639,665.2,663.95,0.3012275]
[1746921258443,0.50923049,665.2,663.95,0.3012275]
[1746921258639,0.2474041,665.19,663.95,0.3012275]
[1746921259042,0.2474041,665.18,663.95,0.3012275]
[1746921259343,0.2474041,665.17,663.95,0.3012275]
[1746921259542,0.2474041,665.17,663.96,0.545]
[1746921259744,0.2474041,665.16,663.96,0.545]
[1746921259936,0.26182639,665.2,663.96,0.545]
[1746921260243,0.2473875,665.19,663.96,0.545]
[1746921260642,0.2473875,665.18,663.96,0.545]
[1746921260939,0.2473875,665.17,663.96,0.545]
[1746921261337,0.2473875,665.16,663.96,0.545]
[1746921261742,0.2473875,665.15,663.96,0.545]
[1746921262145,0.26194365,665.17,663.96,0.545]
[1746921262146,0.2473875,665.14,663.96,0.545]
[1746921262546,0.2473875,665.13,663.96,0.545]
[1746921262839,0.26194365,665.17,663.96,0.545]
[1746921263143,0.26194365,665.17,663.97,0.552]
[1746921263345,0.2473874,665.16,663.97,0.552]
[1746921263544,0.2473874,665.15,663.97,0.552]
[1746921263840,0.2473874,665.16,663.97,0.552]
[1746921264044,0.2473874,665.16,663.99,0.30120935]
[1746921264345,0.26193971,665.15,663.99,0.30120935]
[1746921264538,0.2473874,665.14,663.99,0.30120935]
[1746921265845,0.2473874,665.14,664.0,0.421]
[1746921266641,0.2473874,665.14,664.02,0.30119574]
[1746921268848,0.26193971,665.15,664.02,0.30119574]
[1746921269151,0.24738728,665.14,664.02,0.30119574]
[1746921269444,0.24738728,665.14,664.03,0.619]
[1746921269948,0.24738728,665.14,664.04,0.404]
[1746921270343,0.26191211,665.13,664.04,0.404]
[1746921270848,0.24738728,665.12,664.04,0.404]
[1746921271747,0.24738728,665.12,664.06,0.3011776]
[1746921274752,0.24738728,665.12,664.06,1.0611776]
[1746921275751,0.24738728,665.12,664.06,1.5571776]
[1746921276351,0.26190718,665.11,664.06,1.5571776]